Workbook

Sheet Ark1
A2: Size Chr (Mb) | B2: 4.6 | D2: Initiation timepoint (min) | E2: 10 | G2: Standard deviation | H2: 3 | J2: B phase (%) | K2: 25.9 | M2: Percentage of cells in first rif/cpx peak | N2: 65
A3: C period (min) | B3: 30 | D3: τ (min) | E3: 50 | G3: Mb/channel | H3: 0.23 | J3: C phase (%) | K3: 59.2 | M3: Corresponding initiation timepoint | N3: =-E3*LN(1-N2/200)/LN(2) -> 28.35
A4: D period (min) | B4: 10 | G4: Initiation generation (C, M, G, GG) | H4: c | J4: D phase (%) | K4: 14.9
D5: Deviation theoretical-experimental data | E5: 14.18
B6: Ctrl+d=Run | J6: Termination timepoint (min) | K6: 40
J7: Termination generation | K7: C
C8: Number of cells per channel
A9: Channel | B9: DNA (Mb) | E9: # per channel
A10: 1 | B10: =A10*$H$3 -> 0.23 | C10: 0 | D10: =B10/$B$2 -> 0.1 | E10: 0 | G10: 0
A11: 2 | B11: =A11*$H$3 -> 0.46 | C11: 0 | D11: =B11/$B$2 -> 0.1 | E11: 0 | G11: 0
A12: 3 | B12: 0.69 | C12: 0 | D12: 0.2 | E12: 0 | G12: 0
A13: 4 | B13: 0.92 | C13: 0 | D13: 0.2 | E13: 0 | G13: 0
A14: 5 | B14: 1.15 | C14: 0 | D14: 0.3 | E14: 0 | G14: 0
A15: 6 | B15: 1.38 | C15: 0 | D15: 0.3 | E15: 0 | G15: 0
A16: 7 | B16: 1.61 | C16: 0 | D16: 0.4 | E16: 0 | G16: 0
A17: 8 | B17: 1.84 | C17: 1 | D17: 0.4 | E17: 0 | G17: 0
A18: 9 | B18: 2.07 | C18: 0 | D18: 0.5 | E18: 0 | G18: 1
A19: 10 | B19: 2.3 | C19: 0 | D19: 0.5 | E19: 0 | G19: 3
A20: 11 | B20: 2.53 | C20: 0 | D20: 0.6 | E20: 0 | G20: 8
A21: 12 | B21: 2.76 | C21: 0 | D21: 0.6 | E21: 0 | G21: 21
A22: 13 | B22: 2.99 | C22: 0 | D22: 0.7 | E22: 0 | G22: 50
A23: 14 | B23: 3.22 | C23: 0 | D23: 0.7 | E23: 0 | G23: 104
A24: 15 | B24: 3.45 | C24: 0 | D24: 0.8 | E24: 0 | G24: 196
A25: 16 | B25: 3.68 | C25: 0 | D25: 0.8 | E25: 0 | G25: 332
A26: 17 | B26: 3.91 | C26: 0 | D26: 0.9 | E26: 0 | G26: 507
A27: 18 | B27: 4.14 | C27: 3 | D27: 0.9 | E27: 0 | G27: 700
A28: 19 | B28: 4.37 | C28: 2 | D28: 1.0 | E28: 0 | G28: 877
A29: 20 | B29: 4.6 | C29: 7 | D29: 1.0 | E29: 5183 | G29: 1004
A30: 21 | B30: 4.83 | C30: 17 | D30: 1.1 | E30: 755 | G30: 1061
A31: 22 | B31: 5.06 | C31: 13 | D31: 1.1 | E31: 738 | G31: 1047
A32: 23 | B32: 5.29 | C32: 18 | D32: 1.2 | E32: 722 | G32: 982
A33: 24 | B33: 5.52 | C33: 43 | D33: 1.2 | E33: 707 | G33: 896
A34: 25 | B34: 5.75 | C34: 59 | D34: 1.3 | E34: 691 | G34: 813
A35: 26 | B35: 5.98 | C35: 111 | D35: 1.3 | E35: 676 | G35: 745
A36: 27 | B36: 6.21 | C36: 175 | D36: 1.4 | E36: 662 | G36: 697
A37: 28 | B37: 6.44 | C37: 211 | D37: 1.4 | E37: 648 | G37: 664
A38: 29 | B38: 6.67 | C38: 251 | D38: 1.5 | E38: 633 | G38: 641
A39: 30 | B39: 6.9 | C39: 336 | D39: 1.5 | E39: 620 | G39: 624
A40: 31 | B40: 7.13 | C40: 447 | D40: 1.6 | E40: 606 | G40: 612
A41: 32 | B41: 7.36 | C41: 452 | D41: 1.6 | E41: 593 | G41: 603
A42: 33 | B42: 7.59 | C42: 520 | D42: 1.7 | E42: 580 | G42: 600
A43: 34 | B43: 7.82 | C43: 557 | D43: 1.7 | E43: 568 | G43: 607
A44: 35 | B44: 8.05 | C44: 680 | D44: 1.8 | E44: 556 | G44: 623
A45: 36 | B45: 8.28 | C45: 742 | D45: 1.8 | E45: 543 | G45: 649
A46: 37 | B46: 8.51 | C46: 990 | D46: 1.9 | E46: 532 | G46: 675
A47: 38 | B47: 8.74 | C47: 1093 | D47: 1.9 | E47: 520 | G47: 690
A48: 39 | B48: 8.97 | C48: 1196 | D48: 2.0 | E48: 509 | G48: 677
A49: 40 | B49: 9.2 | C49: 1320 | D49: 2.0 | E49: 2977 | G49: 625
A50: 41 | B50: 9.43 | C50: 1492 | D50: 2.1 | E50: 0 | G50: 536
A51: 42 | B51: 9.66 | C51: 1368 | D51: 2.1 | E51: 0 | G51: 422
A52: 43 | B52: 9.89 | C52: 984 | D52: 2.2 | E52: 0 | G52: 303
A53: 44 | B53: 10.12 | C53: 648 | D53: 2.2 | E53: 0 | G53: 197
A54: 45 | B54: 10.35 | C54: 422 | D54: 2.3 | E54: 0 | G54: 116
A55: 46 | B55: 10.58 | C55: 403 | D55: 2.3 | E55: 0 | G55: 61
A56: 47 | B56: 10.81 | C56: 394 | D56: 2.4 | E56: 0 | G56: 29
A57: 48 | B57: 11.04 | C57: 342 | D57: 2.4 | E57: 0 | G57: 12
A58: 49 | B58: 11.27 | C58: 323 | D58: 2.5 | E58: 0 | G58: 5
A59: 50 | B59: 11.5 | C59: 290 | D59: 2.5 | E59: 0 | G59: 2
A60: 51 | B60: 11.73 | C60: 311 | D60: 2.6 | E60: 0 | G60: 1
A61: 52 | B61: 11.96 | C61: 279 | D61: 2.6 | E61: 0 | G61: 0
A62: 53 | B62: 12.19 | C62: 258 | D62: 2.7 | E62: 0 | G62: 0
A63: 54 | B63: 12.42 | C63: 259 | D63: 2.7 | E63: 0 | G63: 0
A64: 55 | B64: 12.65 | C64: 242 | D64: 2.8 | E64: 0 | G64: 0
A65: 56 | B65: 12.88 | C65: 222 | D65: 2.8 | E65: 0 | G65: 0
A66: 57 | B66: 13.11 | C66: 205 | D66: 2.9 | E66: 0 | G66: 0
A67: 58 | B67: 13.34 | C67: 169 | D67: 2.9 | E67: 0 | G67: 0
A68: 59 | B68: 13.57 | C68: 205 | D68: 3.0 | E68: 0 | G68: 0
A69: 60 | B69: 13.8 | C69: 176 | D69: 3.0 | E69: 0 | G69: 0
A70: 61 | B70: 14.03 | C70: 155 | D70: 3.1 | E70: 0 | G70: 0
A71: 62 | B71: 14.26 | C71: 157 | D71: 3.1 | E71: 0 | G71: 0
A72: 63 | B72: 14.49 | C72: 126 | D72: 3.2 | E72: 0 | G72: 0
A73: 64 | B73: 14.72 | C73: 124 | D73: 3.2 | E73: 0 | G73: 0
A74: 65 | B74: 14.95 | C74: 123 | D74: 3.3 | E74: 0 | G74: 0
A75: 66 | B75: =A75*$H$3 -> 15.18 | C75: 85 | D75: =B75/$B$2 -> 3.3 | E75: 0 | G75: 0
A76: 67 | B76: 15.41 | C76: 81 | D76: 3.4 | E76: 0 | G76: 0
A77: 68 | B77: 15.64 | C77: 92 | D77: 3.4 | E77: 0 | G77: 0
A78: 69 | B78: 15.87 | C78: 74 | D78: 3.5 | E78: 0 | G78: 0
A79: 70 | B79: 16.1 | C79: 61 | D79: 3.5 | E79: 0 | G79: 0
A80: 71 | B80: 16.33 | C80: 54 | D80: 3.6 | E80: 0 | G80: 0
A81: 72 | B81: 16.56 | C81: 51 | D81: 3.6 | E81: 0 | G81: 0
A82: 73 | B82: 16.79 | C82: 50 | D82: 3.7 | E82: 0 | G82: 0
A83: 74 | B83: 17.02 | C83: 57 | D83: 3.7 | E83: 0 | G83: 0
A84: 75 | B84: 17.25 | C84: 43 | D84: 3.8 | E84: 0 | G84: 0
A85: 76 | B85: 17.48 | C85: 27 | D85: 3.8 | E85: 0 | G85: 0
A86: 77 | B86: 17.71 | C86: 39 | D86: 3.9 | E86: 0 | G86: 0
A87: 78 | B87: 17.94 | C87: 16 | D87: 3.9 | E87: 0 | G87: 0
A88: 79 | B88: 18.17 | C88: 37 | D88: 4.0 | E88: 0 | G88: 0
A89: 80 | B89: 18.4 | C89: 30 | D89: 4.0 | E89: 0 | G89: 0
A90: 81 | B90: 18.63 | C90: 31 | D90: 4.1 | E90: 0 | G90: 0
A91: 82 | B91: 18.86 | C91: 11 | D91: 4.1 | E91: 0 | G91: 0
A92: 83 | B92: 19.09 | C92: 23 | D92: 4.2 | E92: 0 | G92: 0
A93: 84 | B93: 19.32 | C93: 16 | D93: 4.2 | E93: 0 | G93: 0
A94: 85 | B94: 19.55 | C94: 20 | D94: 4.3 | E94: 0 | G94: 0
A95: 86 | B95: 19.78 | C95: 25 | D95: 4.3 | E95: 0 | G95: 0
A96: 87 | B96: 20.01 | C96: 17 | D96: 4.4 | E96: 0 | G96: 0
A97: 88 | B97: 20.24 | C97: 7 | D97: 4.4 | E97: 0 | G97: 0
A98: 89 | B98: 20.47 | C98: 9 | D98: 4.5 | E98: 0 | G98: 0
A99: 90 | B99: 20.7 | C99: 3 | D99: 4.5 | E99: 0 | G99: 0
A100: 91 | B100: 20.93 | C100: 9 | D100: 4.6 | E100: 0 | G100: 0
A101: 92 | B101: 21.16 | C101: 1 | D101: 4.6 | E101: 0 | G101: 0
A102: 93 | B102: 21.39 | C102: 5 | D102: 4.7 | E102: 0 | G102: 0
A103: 94 | B103: 21.62 | C103: 4 | D103: 4.7 | E103: 0 | G103: 0
A104: 95 | B104: 21.85 | C104: 7 | D104: 4.8 | E104: 0 | G104: 0
A105: 96 | B105: 22.08 | C105: 2 | D105: 4.8 | E105: 0 | G105: 0
A106: 97 | B106: 22.31 | C106: 1 | D106: 4.9 | E106: 0 | G106: 0
A107: 98 | B107: 22.54 | C107: 3 | D107: 4.9 | E107: 0 | G107: 0
A108: 99 | B108: 22.77 | C108: 4 | D108: 5.0 | E108: 0 | G108: 0
A109: 100 | B109: 23 | C109: 4 | D109: 5.0 | E109: 0 | G109: 0
A110: 101 | B110: 23.23 | C110: 3 | D110: 5.1 | E110: 0 | G110: 0
A111: 102 | B111: 23.46 | C111: 6 | D111: 5.1 | E111: 0 | G111: 0
A112: 103 | B112: 23.69 | C112: 3 | D112: 5.2 | E112: 0 | G112: 0
A113: 104 | B113: 23.92 | C113: 3 | D113: 5.2 | E113: 0 | G113: 0
A114: 105 | B114: 24.15 | C114: 5 | D114: 5.3 | E114: 0 | G114: 0
A115: 106 | B115: 24.38 | C115: 2 | D115: 5.3 | E115: 0 | G115: 0
A116: 107 | B116: 24.61 | C116: 1 | D116: 5.4 | E116: 0 | G116: 0
A117: 108 | B117: 24.84 | C117: 3 | D117: 5.4 | E117: 0 | G117: 0
A118: 109 | B118: 25.07 | C118: 1 | D118: 5.5 | E118: 0 | G118: 0
A119: 110 | B119: 25.3 | C119: 2 | D119: 5.5 | E119: 0 | G119: 0
A120: 111 | B120: 25.53 | C120: 2 | D120: 5.6 | E120: 0 | G120: 0
A121: 112 | B121: 25.76 | C121: 2 | D121: 5.6 | E121: 0 | G121: 0
A122: 113 | B122: 25.99 | C122: 5 | D122: 5.7 | E122: 0 | G122: 0
A123: 114 | B123: 26.22 | C123: 4 | D123: 5.7 | E123: 0 | G123: 0
A124: 115 | B124: 26.45 | C124: 1 | D124: 5.8 | E124: 0 | G124: 0
A125: 116 | B125: 26.68 | C125: 1 | D125: 5.8 | E125: 0 | G125: 0
A126: 117 | B126: 26.91 | C126: 2 | D126: 5.9 | E126: 0 | G126: 0
A127: 118 | B127: 27.14 | C127: 1 | D127: 5.9 | E127: 0 | G127: 0
A128: 119 | B128: 27.37 | C128: 1 | D128: 6.0 | E128: 0 | G128: 0
A129: 120 | B129: 27.6 | C129: 2 | D129: 6.0 | E129: 0 | G129: 0
A130: 121 | B130: 27.83 | C130: 1 | D130: 6.1 | E130: 0 | G130: 0
A131: 122 | B131: 28.06 | C131: 0 | D131: 6.1 | E131: 0 | G131: 0
A132: 123 | B132: 28.29 | C132: 1 | D132: 6.2 | E132: 0 | G132: 0
A133: 124 | B133: 28.52 | C133: 2 | D133: 6.2 | E133: 0 | G133: 0
A134: 125 | B134: 28.75 | C134: 1 | D134: 6.3 | E134: 0 | G134: 0
A135: 126 | B135: 28.98 | C135: 0 | D135: 6.3 | E135: 0 | G135: 0
A136: 127 | B136: 29.21 | C136: 7 | D136: 6.4 | E136: 0 | G136: 0
A137: 128 | B137: 29.44 | C137: 1 | D137: 6.4 | E137: 0 | G137: 0
A138: 129 | B138: 29.67 | C138: 0 | D138: 6.5 | E138: 0 | G138: 0
A139: 130 | B139: =A139*$H$3 -> 29.9 | C139: 0 | D139: =B139/$B$2 -> 6.5 | E139: 0 | G139: 0
A140: 131 | B140: 30.13 | C140: 2 | D140: 6.6 | E140: 0 | G140: 0
A141: 132 | B141: 30.36 | C141: 1 | D141: 6.6 | E141: 0 | G141: 0
A142: 133 | B142: 30.59 | C142: 1 | D142: 6.7 | E142: 0 | G142: 0
A143: 134 | B143: 30.82 | C143: 0 | D143: 6.7 | E143: 0 | G143: 0
A144: 135 | B144: 31.05 | C144: 0 | D144: 6.8 | E144: 0 | G144: 0
A145: 136 | B145: 31.28 | C145: 0 | D145: 6.8 | E145: 0 | G145: 0
A146: 137 | B146: 31.51 | C146: 2 | D146: 6.9 | E146: 0 | G146: 0
A147: 138 | B147: 31.74 | C147: 2 | D147: 6.9 | E147: 0 | G147: 0
A148: 139 | B148: 31.97 | C148: 2 | D148: 7.0 | E148: 0 | G148: 0
A149: 140 | B149: 32.2 | C149: 0 | D149: 7.0 | E149: 0 | G149: 0
A150: 141 | B150: 32.43 | C150: 1 | D150: 7.1 | E150: 0 | G150: 0
A151: 142 | B151: 32.66 | C151: 0 | D151: 7.1 | E151: 0 | G151: 0
A152: 143 | B152: 32.89 | C152: 1 | D152: 7.2 | E152: 0 | G152: 0
A153: 144 | B153: 33.12 | C153: 1 | D153: 7.2 | E153: 0 | G153: 0
A154: 145 | B154: 33.35 | C154: 1 | D154: 7.3 | E154: 0 | G154: 0
A155: 146 | B155: 33.58 | C155: 0 | D155: 7.3 | E155: 0 | G155: 0
A156: 147 | B156: 33.81 | C156: 1 | D156: 7.4 | E156: 0 | G156: 0
A157: 148 | B157: 34.04 | C157: 2 | D157: 7.4 | E157: 0 | G157: 0
A158: 149 | B158: 34.27 | C158: 0 | D158: 7.5 | E158: 0 | G158: 0
A159: 150 | B159: 34.5 | C159: 1 | D159: 7.5 | E159: 0 | G159: 0
A160: 151 | B160: 34.73 | C160: 1 | D160: 7.6 | E160: 0 | G160: 0
A161: 152 | B161: 34.96 | C161: 0 | D161: 7.6 | E161: 0 | G161: 0
A162: 153 | B162: 35.19 | C162: 1 | D162: 7.7 | E162: 0 | G162: 0
A163: 154 | B163: 35.42 | C163: 2 | D163: 7.7 | E163: 0 | G163: 0
A164: 155 | B164: 35.65 | C164: 0 | D164: 7.8 | E164: 0 | G164: 0
A165: 156 | B165: 35.88 | C165: 1 | D165: 7.8 | E165: 0 | G165: 0
A166: 157 | B166: 36.11 | C166: 1 | D166: 7.9 | E166: 0 | G166: 0
A167: 158 | B167: 36.34 | C167: 0 | D167: 7.9 | E167: 0 | G167: 0
A168: 159 | B168: 36.57 | C168: 0 | D168: 8.0 | E168: 0 | G168: 0
A169: 160 | B169: 36.8 | C169: 1 | D169: 8.0 | E169: 0 | G169: 0
A170: 161 | B170: 37.03 | C170: 1 | D170: 8.1 | E170: 0 | G170: 0
A171: 162 | B171: 37.26 | C171: 1 | D171: 8.1 | E171: 0 | G171: 0
A172: 163 | B172: 37.49 | C172: 0 | D172: 8.2 | E172: 0 | G172: 0
A173: 164 | B173: 37.72 | C173: 0 | D173: 8.2 | E173: 0 | G173: 0
A174: 165 | B174: 37.95 | C174: 0 | D174: 8.3 | E174: 0 | G174: 0
A175: 166 | B175: 38.18 | C175: 0 | D175: 8.3 | E175: 0 | G175: 0
A176: 167 | B176: 38.41 | C176: 1 | D176: 8.4 | E176: 0 | G176: 0
A177: 168 | B177: 38.64 | C177: 0 | D177: 8.4 | E177: 0 | G177: 0
A178: 169 | B178: 38.87 | C178: 1 | D178: 8.5 | E178: 0 | G178: 0
A179: 170 | B179: 39.1 | C179: 2 | D179: 8.5 | E179: 0 | G179: 0
A180: 171 | B180: 39.33 | C180: 0 | D180: 8.6 | E180: 0 | G180: 0
A181: 172 | B181: 39.56 | C181: 1 | D181: 8.6 | E181: 0 | G181: 0
A182: 173 | B182: 39.79 | C182: 0 | D182: 8.7 | E182: 0 | G182: 0
A183: 174 | B183: 40.02 | C183: 0 | D183: 8.7 | E183: 0 | G183: 0
A184: 175 | B184: 40.25 | C184: 0 | D184: 8.8 | E184: 0 | G184: 0
A185: 176 | B185: 40.48 | C185: 0 | D185: 8.8 | E185: 0 | G185: 0
A186: 177 | B186: 40.71 | C186: 0 | D186: 8.9 | E186: 0 | G186: 0
A187: 178 | B187: 40.94 | C187: 1 | D187: 8.9 | E187: 0 | G187: 0
A188: 179 | B188: 41.17 | C188: 0 | D188: 9.0 | E188: 0 | G188: 0
A189: 180 | B189: 41.4 | C189: 0 | D189: 9.0 | E189: 0 | G189: 0
A190: 181 | B190: 41.63 | C190: 0 | D190: 9.1 | E190: 0 | G190: 0
A191: 182 | B191: 41.86 | C191: 0 | D191: 9.1 | E191: 0 | G191: 0
A192: 183 | B192: 42.09 | C192: 0 | D192: 9.2 | E192: 0 | G192: 0
A193: 184 | B193: 42.32 | C193: 1 | D193: 9.2 | E193: 0 | G193: 0
A194: 185 | B194: 42.55 | C194: 0 | D194: 9.3 | E194: 0 | G194: 0
A195: 186 | B195: 42.78 | C195: 0 | D195: 9.3 | E195: 0 | G195: 0
A196: 187 | B196: 43.01 | C196: 1 | D196: 9.4 | E196: 0 | G196: 0
A197: 188 | B197: 43.24 | C197: 0 | D197: 9.4 | E197: 0 | G197: 0
A198: 189 | B198: 43.47 | C198: 0 | D198: 9.5 | E198: 0 | G198: 0
A199: 190 | B199: 43.7 | C199: 0 | D199: 9.5 | E199: 0 | G199: 0
A200: 191 | B200: 43.93 | C200: 1 | D200: 9.6 | E200: 0 | G200: 0
A201: 192 | B201: 44.16 | C201: 0 | D201: 9.6 | E201: 0 | G201: 0
... 65 more rows

Sheet Ark2

Sheet Ark3
